[Event "Late-Titled-Tuesday-Blitz-April-02-2024"]
[Site "Chess.com"]
[Date "2024.04.02"]
[Round "5"]
[White "chessydotcom"]
[Black "sillypiggy2024"]
[Result "1-0"]
[WhiteElo "2292"]
[BlackElo "1741"]
[TimeControl "180+1"]
[EndTime "14:52:58 PDT"]
[Termination "chessydotcom won on time"]

1. b3 {[%clk 0:02:59.9]} 1... Nf6 {[%clk 0:02:57.3]} 2. Bb2 {[%clk 0:03:00]}
2... g6 {[%clk 0:02:56.7]} 3. e3 {[%clk 0:02:59.2]} 3... Bg7 {[%clk 0:02:55.7]}
4. Nf3 {[%clk 0:03:00.1]} 4... d5 {[%clk 0:02:54]} 5. d4 {[%clk 0:03:01]} 5...
O-O {[%clk 0:02:47]} 6. Be2 {[%clk 0:03:00.8]} 6... c5 {[%clk 0:02:45]} 7. O-O
{[%clk 0:02:59.4]} 7... Nc6 {[%clk 0:02:32.8]} 8. c4 {[%clk 0:02:55.2]} 8...
cxd4 {[%clk 0:02:13.6]} 9. exd4 {[%clk 0:02:55.9]} 9... Bf5 {[%clk 0:02:03.1]}
10. Nc3 {[%clk 0:02:45.8]} 10... Rc8 {[%clk 0:01:50.1]} 11. Ne5 {[%clk
0:02:34.1]} 11... dxc4 {[%clk 0:01:20.9]} 12. Nxc6 {[%clk 0:02:30.6]} 12... Rxc6
{[%clk 0:01:16.2]} 13. bxc4 {[%clk 0:02:23.2]} 13... Qd7 {[%clk 0:00:56.1]} 14.
c5 {[%clk 0:02:04.8]} 14... Rcc8 {[%clk 0:00:45.5]} 15. Bb5 {[%clk 0:01:55.3]}
15... Qc7 {[%clk 0:00:37.9]} 16. Rc1 {[%clk 0:01:44.4]} 16... Rfd8 {[%clk
0:00:34.9]} 17. Ne2 {[%clk 0:01:35.2]} 17... Nd5 {[%clk 0:00:24]} 18. Ng3 {[%clk
0:01:31.2]} 18... Bd7 {[%clk 0:00:17.3]} 19. Bc4 {[%clk 0:01:22.2]} 19... Bc6
{[%clk 0:00:13.3]} 20. Qb3 {[%clk 0:01:18.5]} 20... e6 {[%clk 0:00:08]} 21. Rfe1
{[%clk 0:01:12.8]} 21... Nf4 {[%clk 0:00:05.9]} 22. Ne4 {[%clk 0:00:47.7]} 22...
Bxd4 {[%clk 0:00:02.2]} 23. Bxd4 {[%clk 0:00:28.4]} 23... Rxd4 {[%clk
0:00:01.3]} 24. f3 {[%clk 0:00:27.6]} 24... Rcd8 {[%clk 0:00:01.1]} 25. Qc3
{[%clk 0:00:22.5]} 1-0

[Event "Late-Titled-Tuesday-Blitz-April-02-2024"]
[Site "Chess.com"]
[Date "2024.04.02"]
[Round "5"]
[White "Quattroporte300"]
[Black "Navyblue1"]
[Result "1-0"]
[WhiteElo "2494"]
[BlackElo "2270"]
[TimeControl "180+1"]
[EndTime "14:53:00 PDT"]
[Termination "Quattroporte300 won by resignation"]

1. e4 {[%clk 0:03:00.9]} 1... c5 {[%clk 0:02:43.3]} 2. Nf3 {[%clk 0:03:00.5]}
2... d6 {[%clk 0:02:43.2]} 3. d4 {[%clk 0:03:00.3]} 3... cxd4 {[%clk 0:02:44.1]}
4. Nxd4 {[%clk 0:03:00.9]} 4... Nf6 {[%clk 0:02:44.4]} 5. Nc3 {[%clk 0:03:01.6]}
5... a6 {[%clk 0:02:44.4]} 6. Be3 {[%clk 0:03:01.9]} 6... e5 {[%clk 0:02:44]} 7.
Nb3 {[%clk 0:03:02.4]} 7... Be7 {[%clk 0:02:43.3]} 8. Qd2 {[%clk 0:03:03]} 8...
Be6 {[%clk 0:02:41.4]} 9. f3 {[%clk 0:03:02.6]} 9... h5 {[%clk 0:02:40.3]} 10.
O-O-O {[%clk 0:03:02.5]} 10... Nbd7 {[%clk 0:02:40.3]} 11. Nd5 {[%clk
0:03:01.8]} 11... Bxd5 {[%clk 0:02:29.2]} 12. exd5 {[%clk 0:03:01.5]} 12... Rc8
{[%clk 0:02:29.3]} 13. Kb1 {[%clk 0:03:00]} 13... Nb6 {[%clk 0:02:28.5]} 14. Qa5
{[%clk 0:02:38.5]} 14... Nbxd5 {[%clk 0:02:19.8]} 15. Rxd5 {[%clk 0:02:35.9]}
15... Nxd5 {[%clk 0:02:19.5]} 16. Qxd5 {[%clk 0:02:35.5]} 16... Qc7 {[%clk
0:02:18.7]} 17. Qd2 {[%clk 0:02:29.4]} 17... O-O {[%clk 0:02:15.9]} 18. Bd3
{[%clk 0:02:24.5]} 18... d5 {[%clk 0:02:15.7]} 19. g4 {[%clk 0:02:18.8]} 19...
hxg4 {[%clk 0:02:13.6]} 20. fxg4 {[%clk 0:02:18.3]} 20... e4 {[%clk 0:02:13.6]}
21. Be2 {[%clk 0:02:15.1]} 21... Rfd8 {[%clk 0:02:13.4]} 22. Nd4 {[%clk
0:02:11.2]} 22... b5 {[%clk 0:02:05.6]} 23. h4 {[%clk 0:02:10.7]} 23... b4
{[%clk 0:01:46.5]} 24. g5 {[%clk 0:02:09]} 24... a5 {[%clk 0:01:45.1]} 25. h5
{[%clk 0:01:53.4]} 25... a4 {[%clk 0:01:41]} 26. h6 {[%clk 0:01:53.1]} 26... g6
{[%clk 0:01:38.9]} 27. h7+ {[%clk 0:01:45.8]} 27... Kh8 {[%clk 0:01:38.6]} 28.
Nb5 {[%clk 0:01:06.9]} 28... Qc6 {[%clk 0:01:37.7]} 29. Na7 {[%clk 0:00:59.8]}
29... Qe6 {[%clk 0:01:36.7]} 30. Nxc8 {[%clk 0:00:58.7]} 30... Rxc8 {[%clk
0:01:37.4]} 31. Bd4+ {[%clk 0:00:51.7]} 31... f6 {[%clk 0:01:37.5]} 32. Qf4
{[%clk 0:00:47.3]} 32... Rf8 {[%clk 0:01:35.8]} 33. Bg4 {[%clk 0:00:41.6]} 33...
Qc6 {[%clk 0:01:33.4]} 34. Bd7 {[%clk 0:00:34.6]} 34... Qa6 {[%clk 0:01:20.9]}
35. Rf1 {[%clk 0:00:24]} 35... a3 {[%clk 0:01:14.4]} 36. gxf6 {[%clk 0:00:23.5]}
36... Bxf6 {[%clk 0:01:12.3]} 37. Bxf6+ {[%clk 0:00:22.9]} 37... Rxf6 {[%clk
0:01:12.9]} 38. Qxf6+ {[%clk 0:00:23.2]} 38... Qxf6 {[%clk 0:01:13.2]} 39. Rxf6
{[%clk 0:00:23.8]} 39... Kxh7 {[%clk 0:01:13.4]} 40. Bc6 {[%clk 0:00:22.1]}
40... Kg7 {[%clk 0:01:10.6]} 41. Re6 {[%clk 0:00:20.7]} 41... g5 {[%clk
0:01:08.1]} 42. Bxd5 {[%clk 0:00:21.1]} 42... axb2 {[%clk 0:01:02.4]} 43. Rxe4
{[%clk 0:00:21.2]} 43... Kf6 {[%clk 0:01:01.4]} 44. Kxb2 {[%clk 0:00:21.7]}
44... Kf5 {[%clk 0:01:01]} 45. Re8 {[%clk 0:00:21.3]} 45... g4 {[%clk
0:01:01.4]} 46. Kb3 {[%clk 0:00:21.6]} 46... Kf4 {[%clk 0:01:00.8]} 47. Kxb4
{[%clk 0:00:21.9]} 47... g3 {[%clk 0:01:01.6]} 48. a4 {[%clk 0:00:22]} 48... g2
{[%clk 0:00:58]} 49. Bxg2 {[%clk 0:00:21.9]} 49... Kg3 {[%clk 0:00:58.3]} 50. a5
{[%clk 0:00:22.2]} 50... Kh2 {[%clk 0:00:59]} 51. a6 {[%clk 0:00:22.4]} 1-0

[Event "Late-Titled-Tuesday-Blitz-April-02-2024"]
[Site "Chess.com"]
[Date "2024.04.02"]
[Round "5"]
[White "LiemLe"]
[Black "Firouzja2003"]
[Result "1-0"]
[WhiteElo "3037"]
[BlackElo "3089"]
[TimeControl "180+1"]
[EndTime "14:53:05 PDT"]
[Termination "LiemLe won by resignation"]

1. Nf3 {[%clk 0:03:00.9]} 1... Nf6 {[%clk 0:02:59.5]} 2. c4 {[%clk 0:03:00.3]}
2... g6 {[%clk 0:02:59.2]} 3. Nc3 {[%clk 0:03:00.2]} 3... Bg7 {[%clk 0:02:59.7]}
4. e4 {[%clk 0:03:00.5]} 4... d6 {[%clk 0:03:00.4]} 5. d4 {[%clk 0:03:01.1]}
5... O-O {[%clk 0:03:00.9]} 6. Be2 {[%clk 0:03:01.7]} 6... e5 {[%clk 0:03:01.4]}
7. O-O {[%clk 0:03:02.3]} 7... exd4 {[%clk 0:03:02.1]} 8. Nxd4 {[%clk
0:03:02.8]} 8... Re8 {[%clk 0:03:02.9]} 9. f3 {[%clk 0:03:02]} 9... c6 {[%clk
0:03:03.6]} 10. Kh1 {[%clk 0:03:02.3]} 10... d5 {[%clk 0:02:40.7]} 11. cxd5
{[%clk 0:03:00.7]} 11... cxd5 {[%clk 0:02:41.6]} 12. Bb5 {[%clk 0:02:59.8]}
12... Nbd7 {[%clk 0:02:35.5]} 13. Bg5 {[%clk 0:02:54]} 13... Qb6 {[%clk
0:00:50.5]} 14. Bxf6 {[%clk 0:02:29.4]} 14... Nxf6 {[%clk 0:00:50.7]} 15. Bxe8
{[%clk 0:02:24.1]} 15... Nxe8 {[%clk 0:00:51.6]} 16. e5 {[%clk 0:01:58.7]} 16...
Qxb2 {[%clk 0:00:36.1]} 17. Nxd5 {[%clk 0:01:48.2]} 17... Bxe5 {[%clk 0:00:36]}
18. Re1 {[%clk 0:01:45.4]} 18... Bh3 {[%clk 0:00:36.1]} 19. Nc2 {[%clk
0:01:29.3]} 19... Bf5 {[%clk 0:00:32.3]} 20. Ne7+ {[%clk 0:01:27.5]} 20... Kf8
{[%clk 0:00:31.2]} 21. Nxf5 {[%clk 0:01:27.8]} 21... gxf5 {[%clk 0:00:32.1]} 22.
Rb1 {[%clk 0:01:22.6]} 22... Qc3 {[%clk 0:00:32.1]} 23. Rxb7 {[%clk 0:01:19.4]}
23... Rc8 {[%clk 0:00:30.3]} 24. Qd7 {[%clk 0:01:14.4]} 24... Nd6 {[%clk
0:00:29.2]} 25. Qe7+ {[%clk 0:01:03.6]} 25... Kg8 {[%clk 0:00:29.6]} 26. Rb3
{[%clk 0:00:56.9]} 26... Qxc2 {[%clk 0:00:15.9]} 27. Qxe5 {[%clk 0:00:57.1]}
27... Qf2 {[%clk 0:00:16.8]} 28. Rg1 {[%clk 0:00:50.9]} 28... Qd2 {[%clk
0:00:11.9]} 29. Rbb1 {[%clk 0:00:46.1]} 29... Rd8 {[%clk 0:00:02.7]} 30. Rbd1
{[%clk 0:00:44.6]} 30... Qh6 {[%clk 0:00:02.9]} 31. Rd5 {[%clk 0:00:40.7]} 31...
Qe6 {[%clk 0:00:02.7]} 32. Qg3+ {[%clk 0:00:29.7]} 32... Kf8 {[%clk 0:00:03]}
33. Rgd1 {[%clk 0:00:29.7]} 33... f4 {[%clk 0:00:03.5]} 34. Qxf4 {[%clk
0:00:26.7]} 34... Qe2 {[%clk 0:00:03.1]} 35. h3 {[%clk 0:00:24.7]} 1-0

[Event "Late-Titled-Tuesday-Blitz-April-02-2024"]
[Site "Chess.com"]
[Date "2024.04.02"]
[Round "5"]
[White "BardArtem"]
[Black "Mikhail_Golubev"]
[Result "0-1"]
[WhiteElo "2833"]
[BlackElo "2630"]
[TimeControl "180+1"]
[EndTime "14:53:06 PDT"]
[Termination "Mikhail_Golubev won by resignation"]

1. e4 {[%clk 0:02:25.2]} 1... c5 {[%clk 0:02:57.7]} 2. Nf3 {[%clk 0:02:23.7]}
2... d6 {[%clk 0:02:56.8]} 3. Nc3 {[%clk 0:02:22.5]} 3... Nf6 {[%clk 0:02:56]}
4. e5 {[%clk 0:02:22.4]} 4... dxe5 {[%clk 0:02:54]} 5. Nxe5 {[%clk 0:02:23.3]}
5... a6 {[%clk 0:02:41.7]} 6. g3 {[%clk 0:02:21.8]} 6... Nbd7 {[%clk 0:02:34.9]}
7. d4 {[%clk 0:02:18.8]} 7... cxd4 {[%clk 0:02:26.6]} 8. Qxd4 {[%clk 0:02:17.3]}
8... Nxe5 {[%clk 0:02:07.2]} 9. Qxe5 {[%clk 0:02:18.2]} 9... e6 {[%clk
0:01:52.6]} 10. Bg2 {[%clk 0:02:13.1]} 10... Bd6 {[%clk 0:01:51.8]} 11. Qe2
{[%clk 0:02:06.8]} 11... Qc7 {[%clk 0:01:43.1]} 12. O-O {[%clk 0:02:06.1]} 12...
O-O {[%clk 0:01:43]} 13. Rd1 {[%clk 0:02:05.5]} 13... Bd7 {[%clk 0:01:34.2]} 14.
Bg5 {[%clk 0:01:34.5]} 14... Bc6 {[%clk 0:01:31.4]} 15. Bxf6 {[%clk 0:01:26.1]}
15... gxf6 {[%clk 0:01:28.5]} 16. Bxc6 {[%clk 0:01:21.2]} 16... Qxc6 {[%clk
0:01:17.5]} 17. Rd4 {[%clk 0:01:20.9]} 17... Kh8 {[%clk 0:01:11.2]} 18. Rh4
{[%clk 0:01:09.3]} 18... Rg8 {[%clk 0:01:09.7]} 19. Ne4 {[%clk 0:01:09.2]} 19...
Be7 {[%clk 0:00:58.3]} 20. Rh3 {[%clk 0:00:11.1]} 20... f5 {[%clk 0:00:54.6]}
21. Nc3 {[%clk 0:00:11.2]} 21... Bf6 {[%clk 0:00:52.1]} 22. Rd1 {[%clk
0:00:06.2]} 22... Bxc3 {[%clk 0:00:45.7]} 23. bxc3 {[%clk 0:00:07.1]} 23... Qxc3
{[%clk 0:00:44.6]} 24. Rd7 {[%clk 0:00:07.8]} 24... Rg7 {[%clk 0:00:38.9]} 25.
Rxb7 {[%clk 0:00:07.8]} 25... Qa1+ {[%clk 0:00:37.3]} 26. Kg2 {[%clk 0:00:07.5]}
26... Qxa2 {[%clk 0:00:37.7]} 27. Qe5 {[%clk 0:00:04.2]} 27... f6 {[%clk
0:00:35.2]} 28. Qd6 {[%clk 0:00:02.1]} 28... Rxb7 {[%clk 0:00:33.2]} 29. Qc6
{[%clk 0:00:01.4]} 29... Qd5+ {[%clk 0:00:32.9]} 30. Qxd5 {[%clk 0:00:02.3]}
30... exd5 {[%clk 0:00:33.3]} 31. Rh4 {[%clk 0:00:03.2]} 31... a5 {[%clk
0:00:33.3]} 32. Ra4 {[%clk 0:00:04.1]} 32... Rb4 {[%clk 0:00:33.1]} 33. Ra1
{[%clk 0:00:05]} 33... a4 {[%clk 0:00:33.3]} 34. c3 {[%clk 0:00:05.9]} 34... Rb2
{[%clk 0:00:32.8]} 35. Kf3 {[%clk 0:00:06.8]} 35... a3 {[%clk 0:00:32.7]} 36.
Ke3 {[%clk 0:00:07.7]} 36... a2 {[%clk 0:00:33]} 37. Rxa2 {[%clk 0:00:08.2]}
37... Raxa2 {[%clk 0:00:31.5]} 0-1

[Event "Late-Titled-Tuesday-Blitz-April-02-2024"]
[Site "Chess.com"]
[Date "2024.04.02"]
[Round "5"]
[White "yobdc"]
[Black "Onthequiet"]
[Result "1-0"]
[WhiteElo "2597"]
[BlackElo "2424"]
[TimeControl "180+1"]
[EndTime "14:53:06 PDT"]
[Termination "yobdc won by resignation"]

1. e4 {[%clk 0:03:00.9]} 1... c6 {[%clk 0:02:59.4]} 2. d4 {[%clk 0:03:00.8]}
2... d5 {[%clk 0:02:59.7]} 3. exd5 {[%clk 0:03:01.3]} 3... cxd5 {[%clk
0:02:59.1]} 4. Bd3 {[%clk 0:03:01.9]} 4... Nf6 {[%clk 0:02:59.3]} 5. c3 {[%clk
0:03:00.8]} 5... Nc6 {[%clk 0:02:59.7]} 6. Bf4 {[%clk 0:03:00.8]} 6... g6 {[%clk
0:02:59.9]} 7. Qc2 {[%clk 0:02:53.9]} 7... Bg7 {[%clk 0:02:59.4]} 8. Nf3 {[%clk
0:02:52.5]} 8... O-O {[%clk 0:02:58.8]} 9. O-O {[%clk 0:02:52.1]} 9... Bd7
{[%clk 0:02:30.7]} 10. Re1 {[%clk 0:02:46.1]} 10... Rc8 {[%clk 0:02:30.7]} 11.
Qb3 {[%clk 0:02:44.8]} 11... Na5 {[%clk 0:02:29.5]} 12. Qa3 {[%clk 0:02:35.6]}
12... Re8 {[%clk 0:02:22.4]} 13. Nbd2 {[%clk 0:02:17.9]} 13... a6 {[%clk
0:02:21.5]} 14. Ne5 {[%clk 0:02:14.8]} 14... Bb5 {[%clk 0:02:14.6]} 15. Bxb5
{[%clk 0:01:44.6]} 15... axb5 {[%clk 0:02:15.5]} 16. Qb4 {[%clk 0:01:45.2]}
16... Nc4 {[%clk 0:01:45.1]} 17. Ndxc4 {[%clk 0:01:42.4]} 17... bxc4 {[%clk
0:01:41.6]} 18. Qxb7 {[%clk 0:01:33.7]} 18... Rb8 {[%clk 0:01:31.4]} 19. Qa7
{[%clk 0:01:33.4]} 19... Ra8 {[%clk 0:01:12]} 20. Qc5 {[%clk 0:01:29.4]} 20...
e6 {[%clk 0:01:11.6]} 21. b3 {[%clk 0:00:57.4]} 21... cxb3 {[%clk 0:01:07.9]}
22. axb3 {[%clk 0:00:56.6]} 22... Rxa1 {[%clk 0:01:08.2]} 23. Rxa1 {[%clk
0:00:57.3]} 23... Ne4 {[%clk 0:01:08.4]} 24. Qc6 {[%clk 0:00:48.6]} 24... g5
{[%clk 0:01:07.6]} 25. Be3 {[%clk 0:00:42.6]} 25... Bxe5 {[%clk 0:01:04.1]} 26.
dxe5 {[%clk 0:00:42.8]} 26... h6 {[%clk 0:01:03.9]} 27. f3 {[%clk 0:00:35.6]}
27... Qc8 {[%clk 0:00:50.8]} 28. Qxc8 {[%clk 0:00:34.1]} 28... Rxc8 {[%clk
0:00:51.7]} 29. fxe4 {[%clk 0:00:34.7]} 29... Rxc3 {[%clk 0:00:52.2]} 30. Bd4
{[%clk 0:00:19.9]} 30... Rxb3 {[%clk 0:00:51.5]} 31. exd5 {[%clk 0:00:19.9]}
31... Rd3 {[%clk 0:00:51.1]} 32. Ra8+ {[%clk 0:00:18]} 32... Kg7 {[%clk
0:00:50.3]} 33. Bc5 {[%clk 0:00:18.1]} 33... Rxd5 {[%clk 0:00:50.1]} 34. Bd6
{[%clk 0:00:18.6]} 34... f5 {[%clk 0:00:49.1]} 35. h3 {[%clk 0:00:18.6]} 35...
h5 {[%clk 0:00:47.8]} 36. Re8 {[%clk 0:00:18.3]} 36... Kf7 {[%clk 0:00:47.3]}
37. Re7+ {[%clk 0:00:18.5]} 37... Kg6 {[%clk 0:00:47.2]} 38. Rxe6+ {[%clk
0:00:19]} 38... Kg7 {[%clk 0:00:47.1]} 39. Re7+ {[%clk 0:00:19.3]} 39... Kg6
{[%clk 0:00:47.2]} 40. Re6+ {[%clk 0:00:17.3]} 40... Kg7 {[%clk 0:00:47.2]} 41.
Rf6 {[%clk 0:00:17.8]} 41... f4 {[%clk 0:00:47]} 42. h4 {[%clk 0:00:18.2]} 42...
gxh4 {[%clk 0:00:42.5]} 43. Rxf4 {[%clk 0:00:18.1]} 43... Kg6 {[%clk 0:00:43.4]}
44. Rxh4 {[%clk 0:00:18.4]} 44... Rd1+ {[%clk 0:00:44.1]} 45. Kh2 {[%clk
0:00:18]} 45... Rxd6 {[%clk 0:00:45]} 46. exd6 {[%clk 0:00:17.8]} 1-0

[Event "Late-Titled-Tuesday-Blitz-April-02-2024"]
[Site "Chess.com"]
[Date "2024.04.02"]
[Round "5"]
[White "Hrant_ChessMood"]
[Black "WilsonPalencia21"]
[Result "1-0"]
[WhiteElo "2937"]
[BlackElo "2584"]
[TimeControl "180+1"]
[EndTime "14:53:09 PDT"]
[Termination "Hrant_ChessMood won on time"]

1. c4 {[%clk 0:03:00.9]} 1... Nf6 {[%clk 0:02:48]} 2. Nf3 {[%clk 0:02:59]} 2...
c5 {[%clk 0:02:47.5]} 3. Nc3 {[%clk 0:02:57.7]} 3... g6 {[%clk 0:02:47.9]} 4. g3
{[%clk 0:02:55.9]} 4... Bg7 {[%clk 0:02:48.2]} 5. Bg2 {[%clk 0:02:54.8]} 5...
O-O {[%clk 0:02:48.5]} 6. d4 {[%clk 0:02:55.1]} 6... d6 {[%clk 0:02:48.5]} 7.
O-O {[%clk 0:02:54.5]} 7... Nc6 {[%clk 0:02:48.3]} 8. dxc5 {[%clk 0:02:50.6]}
8... dxc5 {[%clk 0:02:26.5]} 9. Be3 {[%clk 0:02:48.8]} 9... b6 {[%clk 0:02:15]}
10. Qa4 {[%clk 0:02:41.8]} 10... Bd7 {[%clk 0:02:05.8]} 11. Rfd1 {[%clk
0:02:30.9]} 11... Qc8 {[%clk 0:02:04]} 12. Qc2 {[%clk 0:02:15.8]} 12... Bf5
{[%clk 0:02:01.9]} 13. Qc1 {[%clk 0:02:15.6]} 13... Ne4 {[%clk 0:01:56.6]} 14.
Nxe4 {[%clk 0:01:56.8]} 14... Bxe4 {[%clk 0:01:54.7]} 15. Bh6 {[%clk 0:01:55.9]}
15... Bxf3 {[%clk 0:01:44.2]} 16. Bxf3 {[%clk 0:01:53.9]} 16... Nd4 {[%clk
0:01:44]} 17. Rxd4 {[%clk 0:01:47.7]} 17... cxd4 {[%clk 0:01:41.1]} 18. Bxg7
{[%clk 0:01:47.6]} 18... Kxg7 {[%clk 0:01:41.2]} 19. Bxa8 {[%clk 0:01:48.2]}
19... Qxa8 {[%clk 0:01:41]} 20. Qf4 {[%clk 0:01:49.1]} 20... Rd8 {[%clk
0:01:22.1]} 21. Qe5+ {[%clk 0:01:48.7]} 21... Kg8 {[%clk 0:01:20.9]} 22. Qxe7
{[%clk 0:01:48.9]} 22... Re8 {[%clk 0:01:20]} 23. Qf6 {[%clk 0:01:46.3]} 23...
Rxe2 {[%clk 0:01:03.4]} 24. Qxd4 {[%clk 0:01:46]} 24... Qf3 {[%clk 0:00:51.7]}
25. Rc1 {[%clk 0:01:09.6]} 25... h5 {[%clk 0:00:48.1]} 26. h4 {[%clk 0:01:06.8]}
26... Re4 {[%clk 0:00:25.6]} 27. Qc3 {[%clk 0:00:59.6]} 27... Qf5 {[%clk
0:00:24.7]} 28. Rd1 {[%clk 0:00:56.2]} 28... Qc8 {[%clk 0:00:20.1]} 29. b3
{[%clk 0:00:53.4]} 29... Qe8 {[%clk 0:00:18.4]} 30. Kg2 {[%clk 0:00:43.6]} 30...
Kh7 {[%clk 0:00:17.4]} 31. Rd3 {[%clk 0:00:35.3]} 31... Re2 {[%clk 0:00:12.7]}
32. Re3 {[%clk 0:00:32]} 32... Qc6+ {[%clk 0:00:12.7]} 33. Kg1 {[%clk
0:00:31.6]} 33... Rxa2 {[%clk 0:00:07.7]} 34. Re7 {[%clk 0:00:30.4]} 1-0

[Event "Late-Titled-Tuesday-Blitz-April-02-2024"]
[Site "Chess.com"]
[Date "2024.04.02"]
[Round "5"]
[White "biostatistician"]
[Black "GMAkobianSTL"]
[Result "0-1"]
[WhiteElo "2549"]
[BlackElo "2771"]
[TimeControl "180+1"]
[EndTime "14:53:09 PDT"]
[Termination "GMAkobianSTL won by resignation"]

1. d4 {[%clk 0:03:00.2]} 1... e6 {[%clk 0:02:59.1]} 2. Nf3 {[%clk 0:03:00]} 2...
Nf6 {[%clk 0:02:57.7]} 3. c4 {[%clk 0:02:59.9]} 3... b6 {[%clk 0:02:57.3]} 4.
Nc3 {[%clk 0:02:59.7]} 4... Bb4 {[%clk 0:02:55.5]} 5. Qc2 {[%clk 0:02:59.8]}
5... Bb7 {[%clk 0:02:55]} 6. a3 {[%clk 0:02:59.8]} 6... Bxc3+ {[%clk 0:02:54.4]}
7. Qxc3 {[%clk 0:03:00.7]} 7... d6 {[%clk 0:02:54]} 8. g3 {[%clk 0:03:00.9]}
8... Nbd7 {[%clk 0:02:53.2]} 9. Bg2 {[%clk 0:03:01.1]} 9... O-O {[%clk
0:02:53.1]} 10. O-O {[%clk 0:03:01.5]} 10... Qe7 {[%clk 0:02:52.7]} 11. b4
{[%clk 0:03:00.6]} 11... h6 {[%clk 0:02:50.4]} 12. Bb2 {[%clk 0:02:59.6]} 12...
a5 {[%clk 0:02:47.9]} 13. b5 {[%clk 0:02:49.9]} 13... Ne4 {[%clk 0:02:40.7]} 14.
Qc2 {[%clk 0:02:48]} 14... f5 {[%clk 0:02:39.6]} 15. Ne1 {[%clk 0:02:44.9]}
15... Rae8 {[%clk 0:02:37.5]} 16. Nd3 {[%clk 0:02:41.9]} 16... e5 {[%clk
0:02:25.7]} 17. e3 {[%clk 0:02:35.3]} 17... Ba8 {[%clk 0:02:21.6]} 18. a4 {[%clk
0:02:34.6]} 18... Ng5 {[%clk 0:01:52.7]} 19. Bxa8 {[%clk 0:02:15.3]} 19... Rxa8
{[%clk 0:01:51]} 20. dxe5 {[%clk 0:02:15.6]} 20... dxe5 {[%clk 0:01:33.2]} 21.
Ba3 {[%clk 0:02:10.5]} 21... Nc5 {[%clk 0:01:32.5]} 22. Nxc5 {[%clk 0:02:04.7]}
22... bxc5 {[%clk 0:01:32.2]} 23. f4 {[%clk 0:01:43.1]} 23... exf4 {[%clk
0:01:26.8]} 24. exf4 {[%clk 0:01:44]} 24... Qe3+ {[%clk 0:01:21.8]} 25. Kh1
{[%clk 0:01:43.7]} 25... Ne4 {[%clk 0:01:21.3]} 26. Bc1 {[%clk 0:01:29.7]} 26...
Qd4 {[%clk 0:01:15.9]} 27. Bb2 {[%clk 0:01:29.5]} 27... Qd6 {[%clk 0:01:03.5]}
28. Rad1 {[%clk 0:01:28]} 28... Qe6 {[%clk 0:01:03.2]} 29. Rd5 {[%clk
0:01:26.4]} 29... Rad8 {[%clk 0:01:02.8]} 30. Rfd1 {[%clk 0:01:17.7]} 30... Rxd5
{[%clk 0:01:02.4]} 31. Rxd5 {[%clk 0:01:15.5]} 31... Kh7 {[%clk 0:01:01.7]} 32.
Kg2 {[%clk 0:01:12.3]} 32... Rf7 {[%clk 0:01:00.9]} 33. Qd3 {[%clk 0:01:10.3]}
33... h5 {[%clk 0:00:57.6]} 34. Re5 {[%clk 0:00:57.2]} 34... Qg6 {[%clk
0:00:47.6]} 35. Qd8 {[%clk 0:00:57.1]} 35... Qg4 {[%clk 0:00:38.2]} 36. Qd3
{[%clk 0:00:42]} 36... Rd7 {[%clk 0:00:34.2]} 37. Rd5 {[%clk 0:00:29]} 37...
Rxd5 {[%clk 0:00:33.2]} 38. cxd5 {[%clk 0:00:29.9]} 38... h4 {[%clk 0:00:32]}
39. Qf3 {[%clk 0:00:27]} 39... h3+ {[%clk 0:00:31.8]} 0-1

[Event "Late-Titled-Tuesday-Blitz-April-02-2024"]
[Site "Chess.com"]
[Date "2024.04.02"]
[Round "5"]
[White "djano"]
[Black "giomar27"]
[Result "0-1"]
[WhiteElo "2635"]
[BlackElo "2481"]
[TimeControl "180+1"]
[EndTime "14:53:09 PDT"]
[Termination "giomar27 won on time"]

1. e4 {[%clk 0:03:00.9]} 1... e5 {[%clk 0:02:58.6]} 2. d4 {[%clk 0:03:00.8]}
2... Nc6 {[%clk 0:02:55.4]} 3. Nf3 {[%clk 0:02:59.5]} 3... exd4 {[%clk
0:02:55.3]} 4. Bc4 {[%clk 0:02:57.7]} 4... Nf6 {[%clk 0:02:55.3]} 5. Ng5 {[%clk
0:02:57.5]} 5... d5 {[%clk 0:02:52.9]} 6. exd5 {[%clk 0:02:57.5]} 6... Qe7+
{[%clk 0:02:53.2]} 7. Kf1 {[%clk 0:02:57.1]} 7... Ne5 {[%clk 0:02:53.3]} 8. Qxd4
{[%clk 0:02:56.9]} 8... Nxc4 {[%clk 0:02:53.7]} 9. Qxc4 {[%clk 0:02:56.9]} 9...
Qc5 {[%clk 0:02:54.4]} 10. Qe2+ {[%clk 0:02:51.2]} 10... Be7 {[%clk 0:02:48]}
11. b3 {[%clk 0:02:41]} 11... b5 {[%clk 0:02:33.5]} 12. c4 {[%clk 0:02:22]}
12... O-O {[%clk 0:02:25.7]} 13. Be3 {[%clk 0:02:16.1]} 13... Qd6 {[%clk
0:02:08.1]} 14. Nc3 {[%clk 0:02:11.2]} 14... bxc4 {[%clk 0:02:07.1]} 15. bxc4
{[%clk 0:02:10.8]} 15... c6 {[%clk 0:02:06.6]} 16. Rd1 {[%clk 0:02:02.8]} 16...
cxd5 {[%clk 0:01:56.4]} 17. Nxd5 {[%clk 0:01:59.9]} 17... Nxd5 {[%clk
0:01:54.5]} 18. Rxd5 {[%clk 0:02:00]} 18... Qc6 {[%clk 0:01:47.6]} 19. Bd4
{[%clk 0:01:25.5]} 19... Ba6 {[%clk 0:01:36.7]} 20. Kg1 {[%clk 0:00:29.5]} 20...
Bxc4 {[%clk 0:01:34.5]} 21. Qc2 {[%clk 0:00:21.8]} 21... g6 {[%clk 0:01:14.9]}
22. Ra5 {[%clk 0:00:11.1]} 22... Rad8 {[%clk 0:01:06.9]} 23. Nf3 {[%clk
0:00:11.1]} 23... Bb4 {[%clk 0:00:56.1]} 24. Rxa7 {[%clk 0:00:07.8]} 24... Rfe8
{[%clk 0:00:51.9]} 25. h4 {[%clk 0:00:06]} 25... Qd5 {[%clk 0:00:37.9]} 26. Be3
{[%clk 0:00:05.3]} 26... Rc8 {[%clk 0:00:25.1]} 27. Qa4 {[%clk 0:00:04.2]} 27...
Bd6 {[%clk 0:00:21.9]} 28. Qd7 {[%clk 0:00:02.2]} 28... Qd1+ {[%clk 0:00:14.7]}
0-1